[Event "*** Titled Tuesday Blitz"]
[Site "Chess.com"]
[Date "2021.02.16"]
[Round "4"]
[White "frenchpin"]
[Black "stepakyedael"]
[Result "1/2-1/2"]
[WhiteElo "2504"]
[BlackElo "2341"]
[TimeControl "180+1"]
[EndTime "10:42:22 PST"]
[Termination "Game drawn by repetition"]

1. e4 {[%clk 0:03:00.9]} 1... c5 {[%clk 0:02:58.8]} 2. Nf3 {[%clk 0:03:01]} 2...
e6 {[%clk 0:02:59]} 3. c3 {[%clk 0:03:01.1]} 3... a6 {[%clk 0:02:57.6]} 4. d4
{[%clk 0:03:00.8]} 4... Qc7 {[%clk 0:02:57.8]} 5. Bd3 {[%clk 0:02:57.4]} 5... d6
{[%clk 0:02:57.6]} 6. O-O {[%clk 0:02:57.2]} 6... e5 {[%clk 0:02:57.5]} 7. Re1
{[%clk 0:02:56.2]} 7... Nf6 {[%clk 0:02:54.9]} 8. a3 {[%clk 0:02:52.8]} 8... Be7
{[%clk 0:02:52.7]} 9. b4 {[%clk 0:02:53]} 9... b6 {[%clk 0:02:46.9]} 10. Bb2
{[%clk 0:02:47.2]} 10... O-O {[%clk 0:02:46]} 11. Nbd2 {[%clk 0:02:47.3]} 11...
Nbd7 {[%clk 0:02:42.6]} 12. Rc1 {[%clk 0:02:46.9]} 12... Bb7 {[%clk 0:02:41.2]}
13. Bb1 {[%clk 0:02:42.7]} 13... Rfe8 {[%clk 0:02:38.3]} 14. h3 {[%clk
0:02:42.2]} 14... Nf8 {[%clk 0:02:35.5]} 15. Nc4 {[%clk 0:02:19]} 15... Ng6
{[%clk 0:02:30.2]} 16. d5 {[%clk 0:02:01.5]} 16... Nf4 {[%clk 0:02:14.2]} 17.
Ne3 {[%clk 0:01:51.6]} 17... g6 {[%clk 0:02:11.9]} 18. Rc2 {[%clk 0:01:33.6]}
18... Bc8 {[%clk 0:02:09.6]} 19. Bc1 {[%clk 0:01:32.4]} 19... Qd7 {[%clk
0:02:09.1]} 20. Nc4 {[%clk 0:01:01.6]} 20... Rb8 {[%clk 0:02:02.9]} 21. Bxf4
{[%clk 0:00:58]} 21... exf4 {[%clk 0:02:01]} 22. Rd2 {[%clk 0:00:48.6]} 22... b5
{[%clk 0:01:49.4]} 23. Na5 {[%clk 0:00:46.7]} 23... Nh5 {[%clk 0:01:43.9]} 24.
Nc6 {[%clk 0:00:41.2]} 24... Ra8 {[%clk 0:01:38.7]} 25. e5 {[%clk 0:00:40.6]}
25... dxe5 {[%clk 0:01:36.5]} 26. Nfxe5 {[%clk 0:00:40]} 26... Qd6 {[%clk
0:01:33.9]} 27. bxc5 {[%clk 0:00:37.4]} 27... Qxc5 {[%clk 0:01:29.4]} 28. d6
{[%clk 0:00:37.9]} 28... Bf6 {[%clk 0:01:27]} 29. d7 {[%clk 0:00:33.4]} 29...
Bxd7 {[%clk 0:01:25.9]} 30. Nxd7 {[%clk 0:00:33.2]} 30... Qxc6 {[%clk
0:01:23.2]} 31. Rxe8+ {[%clk 0:00:26.3]} 31... Rxe8 {[%clk 0:01:20.4]} 32. Rd6
{[%clk 0:00:21.8]} 32... Qxc3 {[%clk 0:01:16.4]} 33. Kf1 {[%clk 0:00:12.9]}
33... Bg7 {[%clk 0:01:08.2]} 34. Bd3 {[%clk 0:00:09.7]} 34... Qc7 {[%clk
0:01:01.9]} 35. Be2 {[%clk 0:00:09.3]} 35... Ng3+ {[%clk 0:00:58.6]} 36. fxg3
{[%clk 0:00:09.1]} 36... fxg3 {[%clk 0:00:58.8]} 37. Bg4 {[%clk 0:00:06.7]}
37... Qa7 {[%clk 0:00:56.8]} 38. Qd2 {[%clk 0:00:03.1]} 38... Qf2+ {[%clk
0:00:56.2]} 39. Qxf2 {[%clk 0:00:02.7]} 39... gxf2 {[%clk 0:00:56.4]} 40. Nc5
{[%clk 0:00:02.8]} 40... f5 {[%clk 0:00:54.5]} 41. Bf3 {[%clk 0:00:01.9]} 41...
Rc8 {[%clk 0:00:51.2]} 42. Bd5+ {[%clk 0:00:02.8]} 42... Kf8 {[%clk 0:00:50.3]}
43. Nd3 {[%clk 0:00:03.7]} 43... Bd4 {[%clk 0:00:45.9]} 44. Bf3 {[%clk
0:00:03.1]} 44... Bc5 {[%clk 0:00:44]} 45. Rd5 {[%clk 0:00:03.1]} 45... Be7
{[%clk 0:00:43.2]} 46. Nxf2 {[%clk 0:00:03.2]} 46... Bh4 {[%clk 0:00:42.8]} 47.
Nd3 {[%clk 0:00:02.9]} 47... Rc3 {[%clk 0:00:41.8]} 48. Rd7 {[%clk 0:00:03]}
48... Rxa3 {[%clk 0:00:41.2]} 49. Ke2 {[%clk 0:00:03.2]} 49... Ra2+ {[%clk
0:00:41.3]} 50. Ke3 {[%clk 0:00:03.1]} 50... Bg5+ {[%clk 0:00:40.7]} 51. Kd4
{[%clk 0:00:03.6]} 51... Rd2 {[%clk 0:00:40.3]} 52. Rxh7 {[%clk 0:00:03.2]}
52... Bf6+ {[%clk 0:00:39.3]} 53. Ke3 {[%clk 0:00:01.8]} 53... Bg5+ {[%clk
0:00:39.4]} 54. Kd4 {[%clk 0:00:02.4]} 54... Bf6+ {[%clk 0:00:39.5]} 55. Ke3
{[%clk 0:00:02.9]} 55... Bg5+ {[%clk 0:00:39.7]} 56. Kd4 {[%clk 0:00:03.4]}
1/2-1/2

[Event "*** Titled Tuesday Blitz"]
[Site "Chess.com"]
[Date "2021.02.16"]
[Round "4"]
[White "Make_it_shine060"]
[Black "Chamal_Gedgafov"]
[Result "1-0"]
[WhiteElo "2184"]
[BlackElo "2343"]
[TimeControl "180+1"]
[EndTime "10:42:23 PST"]
[Termination "Make_it_shine060 won on time"]

1. d4 {[%clk 0:03:00.9]} 1... Nf6 {[%clk 0:02:58.8]} 2. c4 {[%clk 0:03:00.3]}
2... g6 {[%clk 0:02:59.2]} 3. Nc3 {[%clk 0:02:59]} 3... Bg7 {[%clk 0:03:00.1]}
4. e4 {[%clk 0:02:58.4]} 4... O-O {[%clk 0:02:59.4]} 5. Be2 {[%clk 0:02:50.9]}
5... d6 {[%clk 0:02:59.2]} 6. Bg5 {[%clk 0:02:46]} 6... c5 {[%clk 0:02:57.6]} 7.
d5 {[%clk 0:02:44.6]} 7... h6 {[%clk 0:02:57]} 8. Bh4 {[%clk 0:02:43.8]} 8... b5
{[%clk 0:02:52.4]} 9. cxb5 {[%clk 0:02:41.5]} 9... Qa5 {[%clk 0:02:49.3]} 10.
Qd2 {[%clk 0:02:38.2]} 10... a6 {[%clk 0:02:48.9]} 11. a4 {[%clk 0:02:32.3]}
11... Qb4 {[%clk 0:02:44.5]} 12. f3 {[%clk 0:02:26.3]} 12... Bd7 {[%clk
0:02:25.8]} 13. bxa6 {[%clk 0:02:02.4]} 13... Nxa6 {[%clk 0:02:19.9]} 14. Nb5
{[%clk 0:01:45.4]} 14... Rfb8 {[%clk 0:01:49.4]} 15. Ra3 {[%clk 0:01:38.2]}
15... Nxd5 {[%clk 0:01:17.2]} 16. Nh3 {[%clk 0:00:40.5]} 16... Bxb2 {[%clk
0:01:01.1]} 17. Rd3 {[%clk 0:00:19.5]} 17... Nf6 {[%clk 0:00:48.1]} 18. O-O
{[%clk 0:00:17.1]} 18... Bxb5 {[%clk 0:00:41.8]} 19. axb5 {[%clk 0:00:16.1]}
19... Rxb5 {[%clk 0:00:20.1]} 20. Bxf6 {[%clk 0:00:15.3]} 20... Bxf6 {[%clk
0:00:18.5]} 21. Qxh6 {[%clk 0:00:15.1]} 21... Nc7 {[%clk 0:00:14]} 22. Ng5
{[%clk 0:00:12.8]} 22... Bxg5 {[%clk 0:00:13.5]} 23. Qxg5 {[%clk 0:00:12.9]}
23... Ne6 {[%clk 0:00:13]} 24. Qh6 {[%clk 0:00:12.2]} 24... Nd4 {[%clk
0:00:11.1]} 25. f4 {[%clk 0:00:09.9]} 25... Nxe2+ {[%clk 0:00:09.9]} 26. Kh1
{[%clk 0:00:09.9]} 26... Ra3 {[%clk 0:00:08.9]} 27. Rxa3 {[%clk 0:00:05.1]}
27... Qxa3 {[%clk 0:00:09.8]} 28. f5 {[%clk 0:00:04.8]} 28... Qc3 {[%clk
0:00:05.8]} 29. fxg6 {[%clk 0:00:04.2]} 29... Qg7 {[%clk 0:00:04.4]} 30. gxf7+
{[%clk 0:00:03.3]} 30... Kf8 {[%clk 0:00:04.3]} 31. Qxg7+ {[%clk 0:00:03.3]}
31... Kxg7 {[%clk 0:00:03]} 32. f8=Q+ {[%clk 0:00:03.2]} 32... Kg6 {[%clk
0:00:03.1]} 33. Qf7+ {[%clk 0:00:03.5]} 33... Kg5 {[%clk 0:00:02.8]} 34. Qf5+
{[%clk 0:00:03.5]} 34... Kh6 {[%clk 0:00:02.4]} 35. Qh3+ {[%clk 0:00:04.4]}
35... Kg7 {[%clk 0:00:02]} 36. Qg4+ {[%clk 0:00:04.6]} 1-0

[Event "*** Titled Tuesday Blitz"]
[Site "Chess.com"]
[Date "2021.02.16"]
[Round "4"]
[White "rasmussvane"]
[Black "Lagmantr"]
[Result "1-0"]
[WhiteElo "2923"]
[BlackElo "2713"]
[TimeControl "180+1"]
[EndTime "10:42:30 PST"]
[Termination "rasmussvane won by resignation"]

1. Nf3 {[%clk 0:03:00.9]} 1... d5 {[%clk 0:02:59.6]} 2. g3 {[%clk 0:03:01.4]}
2... Bg4 {[%clk 0:02:59.5]} 3. Bg2 {[%clk 0:03:01.9]} 3... Nd7 {[%clk
0:02:59.7]} 4. O-O {[%clk 0:03:02.2]} 4... Ngf6 {[%clk 0:02:58.9]} 5. h3 {[%clk
0:03:02.7]} 5... Bxf3 {[%clk 0:02:58.6]} 6. Bxf3 {[%clk 0:03:03.6]} 6... e5
{[%clk 0:02:59.2]} 7. d3 {[%clk 0:03:04]} 7... Bd6 {[%clk 0:02:59]} 8. e4 {[%clk
0:03:04.6]} 8... d4 {[%clk 0:02:58.1]} 9. Nd2 {[%clk 0:03:04]} 9... c5 {[%clk
0:02:57.6]} 10. a4 {[%clk 0:03:03.6]} 10... O-O {[%clk 0:02:54.3]} 11. Bg2
{[%clk 0:03:03.5]} 11... g6 {[%clk 0:02:51.8]} 12. f4 {[%clk 0:03:02.7]} 12...
exf4 {[%clk 0:02:51.6]} 13. gxf4 {[%clk 0:03:03.6]} 13... Nh5 {[%clk 0:02:48.9]}
14. e5 {[%clk 0:02:55.6]} 14... Bc7 {[%clk 0:02:48.6]} 15. Bxb7 {[%clk
0:02:43.5]} 15... Rb8 {[%clk 0:02:48.8]} 16. Bg2 {[%clk 0:02:43.6]} 16... f6
{[%clk 0:02:37.9]} 17. e6 {[%clk 0:02:22.9]} 17... Nb6 {[%clk 0:02:36.9]} 18.
Ne4 {[%clk 0:01:33.2]} 18... Nd5 {[%clk 0:02:17]} 19. f5 {[%clk 0:00:52]} 19...
Ne3 {[%clk 0:02:17]} 20. Bxe3 {[%clk 0:00:52.1]} 20... dxe3 {[%clk 0:02:17.9]}
21. Qg4 {[%clk 0:00:48.6]} 21... Kg7 {[%clk 0:02:04.7]} 22. b3 {[%clk
0:00:48.8]} 22... Qd4 {[%clk 0:01:56.8]} 23. Rae1 {[%clk 0:00:41]} 23... c4
{[%clk 0:01:47.8]} 24. dxc4 {[%clk 0:00:35.7]} 24... Qe5 {[%clk 0:01:46.7]} 25.
Rf3 {[%clk 0:00:28.1]} 25... Qh2+ {[%clk 0:01:40.4]} 26. Kf1 {[%clk 0:00:28.3]}
26... Nf4 {[%clk 0:01:13.8]} 27. Rfxe3 {[%clk 0:00:20.8]} 27... Nxe6 {[%clk
0:01:05.3]} 28. Nf2 {[%clk 0:00:09.4]} 28... Nf4 {[%clk 0:00:51.5]} 29. Re7+
{[%clk 0:00:09.5]} 29... Rf7 {[%clk 0:00:52]} 30. fxg6 {[%clk 0:00:09]} 30...
hxg6 {[%clk 0:00:44.2]} 31. Rxf7+ {[%clk 0:00:09]} 31... Kxf7 {[%clk 0:00:45.1]}
32. Bd5+ {[%clk 0:00:04.9]} 32... Kf8 {[%clk 0:00:39]} 33. Bg2 {[%clk 0:00:03]}
33... Rd8 {[%clk 0:00:34.2]} 34. Nd3 {[%clk 0:00:03.4]} 34... Rd4 {[%clk
0:00:21]} 35. Nc5 {[%clk 0:00:02.5]} 35... f5 {[%clk 0:00:15.7]} 36. Qg5 {[%clk
0:00:02.3]} 36... Qxg2+ {[%clk 0:00:08.7]} 37. Qxg2 {[%clk 0:00:02]} 37... Nxg2
{[%clk 0:00:09.6]} 38. Kxg2 {[%clk 0:00:02.9]} 38... Rd2+ {[%clk 0:00:10.5]} 39.
Kf3 {[%clk 0:00:03.2]} 39... Kf7 {[%clk 0:00:10]} 40. Nd3 {[%clk 0:00:03.5]}
40... Ba5 {[%clk 0:00:10.1]} 41. Nf4 {[%clk 0:00:03.2]} 41... g5 {[%clk
0:00:08.9]} 42. Nd5 {[%clk 0:00:03.4]} 42... g4+ {[%clk 0:00:09.4]} 43. hxg4
{[%clk 0:00:03.5]} 43... fxg4+ {[%clk 0:00:10.3]} 44. Kxg4 {[%clk 0:00:04.2]}
44... Rxd5 {[%clk 0:00:10.8]} 45. Rf1+ {[%clk 0:00:04.7]} 45... Ke6 {[%clk
0:00:10.5]} 46. cxd5+ {[%clk 0:00:05.2]} 46... Kxd5 {[%clk 0:00:11.4]} 47. Rf5+
{[%clk 0:00:05.8]} 47... Kd4 {[%clk 0:00:11.8]} 48. Rxa5 {[%clk 0:00:06.7]} 1-0

[Event "*** Titled Tuesday Blitz"]
[Site "Chess.com"]
[Date "2021.02.16"]
[Round "4"]
[White "maxip32"]
[Black "Mr_Heisenberg13"]
[Result "0-1"]
[WhiteElo "2502"]
[BlackElo "2695"]
[TimeControl "180+1"]
[EndTime "10:42:30 PST"]
[Termination "Mr_Heisenberg13 won on time"]

1. e4 {[%clk 0:03:00.9]} 1... e5 {[%clk 0:02:59.3]} 2. Nf3 {[%clk 0:03:00.7]}
2... Nf6 {[%clk 0:02:59.5]} 3. d4 {[%clk 0:02:54.9]} 3... Nxe4 {[%clk
0:02:57.7]} 4. Bd3 {[%clk 0:02:47.9]} 4... d5 {[%clk 0:02:57.2]} 5. dxe5 {[%clk
0:02:43.5]} 5... Nc5 {[%clk 0:02:54.4]} 6. Be2 {[%clk 0:02:40.7]} 6... Nc6
{[%clk 0:02:53.6]} 7. Nbd2 {[%clk 0:02:31.6]} 7... Be7 {[%clk 0:02:52.3]} 8. Nb3
{[%clk 0:02:31]} 8... Nxb3 {[%clk 0:02:51.9]} 9. axb3 {[%clk 0:02:30.5]} 9...
O-O {[%clk 0:02:52.3]} 10. O-O {[%clk 0:02:22.4]} 10... Be6 {[%clk 0:02:51.7]}
11. c3 {[%clk 0:02:16.3]} 11... f6 {[%clk 0:02:51.5]} 12. exf6 {[%clk
0:02:12.5]} 12... Bxf6 {[%clk 0:02:52.4]} 13. Bb5 {[%clk 0:01:43.6]} 13... Qd6
{[%clk 0:02:46.5]} 14. Re1 {[%clk 0:01:39.2]} 14... Bg4 {[%clk 0:02:42]} 15. Be2
{[%clk 0:01:37.5]} 15... Rae8 {[%clk 0:02:38.9]} 16. h3 {[%clk 0:01:36.2]} 16...
Bh5 {[%clk 0:02:37.6]} 17. Be3 {[%clk 0:01:26.7]} 17... Rxe3 {[%clk 0:02:11.5]}
18. fxe3 {[%clk 0:01:24.9]} 18... Bf7 {[%clk 0:02:01.1]} 19. Rf1 {[%clk
0:01:18.4]} 19... Re8 {[%clk 0:01:58.7]} 20. Qd2 {[%clk 0:01:10.2]} 20... Qg3
{[%clk 0:01:58.3]} 21. Bd3 {[%clk 0:01:05.9]} 21... h6 {[%clk 0:01:20.8]} 22.
Qf2 {[%clk 0:01:05.2]} 22... Qd6 {[%clk 0:01:20.7]} 23. Rae1 {[%clk 0:00:57.7]}
23... Ne5 {[%clk 0:01:19.9]} 24. Nxe5 {[%clk 0:00:51.2]} 24... Rxe5 {[%clk
0:01:20.8]} 25. e4 {[%clk 0:00:45.4]} 25... Bg6 {[%clk 0:01:14.6]} 26. Qxa7
{[%clk 0:00:40.9]} 26... dxe4 {[%clk 0:01:10.6]} 27. Bc4+ {[%clk 0:00:40.5]}
27... Kh7 {[%clk 0:01:09.6]} 28. Qxb7 {[%clk 0:00:32.5]} 28... e3 {[%clk
0:01:08.1]} 29. Qf3 {[%clk 0:00:30.5]} 29... Qe7 {[%clk 0:01:00.3]} 30. Re2
{[%clk 0:00:28]} 30... Bg5 {[%clk 0:00:45.2]} 31. Rfe1 {[%clk 0:00:26.3]} 31...
Be4 {[%clk 0:00:41.3]} 32. Qg4 {[%clk 0:00:19.4]} 32... Bf5 {[%clk 0:00:37.4]}
33. Qf3 {[%clk 0:00:19.2]} 33... Be4 {[%clk 0:00:36.9]} 34. Qg3 {[%clk
0:00:16.9]} 34... Bb7 {[%clk 0:00:32.6]} 35. Bd3+ {[%clk 0:00:14.4]} 35... Kh8
{[%clk 0:00:32.4]} 36. Qg4 {[%clk 0:00:12.7]} 36... Qd6 {[%clk 0:00:20.3]} 37.
Bc4 {[%clk 0:00:12.5]} 37... Qf6 {[%clk 0:00:17.9]} 38. Rf1 {[%clk 0:00:09.9]}
38... Qe7 {[%clk 0:00:17.7]} 39. Rfe1 {[%clk 0:00:06.8]} 39... Qf6 {[%clk
0:00:16.7]} 40. Rf1 {[%clk 0:00:07.2]} 40... Qe7 {[%clk 0:00:17]} 41. Qg3 {[%clk
0:00:07.6]} 41... Bh4 {[%clk 0:00:11.4]} 42. Rf8+ {[%clk 0:00:06.8]} 42... Kh7
{[%clk 0:00:09.7]} 43. Bg8+ {[%clk 0:00:05.8]} 43... Kh8 {[%clk 0:00:08.5]} 44.
Qg6 {[%clk 0:00:04.2]} 44... Be4 {[%clk 0:00:06]} 0-1

[Event "*** Titled Tuesday Blitz"]
[Site "Chess.com"]
[Date "2021.02.16"]
[Round "4"]
[White "bazar-wokzal"]
[Black "FredyMatsuura"]
[Result "0-1"]
[WhiteElo "2557"]
[BlackElo "2297"]
[TimeControl "180+1"]
[EndTime "10:42:32 PST"]
[Termination "FredyMatsuura won by resignation"]

1. e4 {[%clk 0:03:00.9]} 1... c5 {[%clk 0:02:59.4]} 2. c3 {[%clk 0:03:00.5]}
2... e6 {[%clk 0:02:59.4]} 3. d4 {[%clk 0:03:00.6]} 3... d5 {[%clk 0:02:59.7]}
4. e5 {[%clk 0:03:01.1]} 4... Qb6 {[%clk 0:02:59]} 5. Nf3 {[%clk 0:03:00.4]}
5... Bd7 {[%clk 0:02:59.1]} 6. a3 {[%clk 0:03:00.9]} 6... cxd4 {[%clk
0:02:56.4]} 7. cxd4 {[%clk 0:03:00.2]} 7... Bb5 {[%clk 0:02:56.5]} 8. Bxb5+
{[%clk 0:03:00]} 8... Qxb5 {[%clk 0:02:56.6]} 9. Nc3 {[%clk 0:02:59.9]} 9... Qa6
{[%clk 0:02:56.7]} 10. Rb1 {[%clk 0:02:55.8]} 10... Ne7 {[%clk 0:02:44.9]} 11.
b4 {[%clk 0:02:55.4]} 11... Nf5 {[%clk 0:02:44.4]} 12. b5 {[%clk 0:02:51.1]}
12... Qa5 {[%clk 0:02:43.8]} 13. Bd2 {[%clk 0:02:50.2]} 13... Qxa3 {[%clk
0:02:33]} 14. O-O {[%clk 0:02:46.9]} 14... Qe7 {[%clk 0:02:32.8]} 15. Qc2 {[%clk
0:02:37.7]} 15... Qd8 {[%clk 0:02:31.7]} 16. Rfc1 {[%clk 0:02:24.6]} 16... Be7
{[%clk 0:02:30.9]} 17. Rb3 {[%clk 0:01:56.6]} 17... O-O {[%clk 0:02:20.4]} 18.
g3 {[%clk 0:01:37.3]} 18... Nd7 {[%clk 0:02:14.8]} 19. Nxd5 {[%clk 0:01:33.3]}
19... exd5 {[%clk 0:01:58.3]} 20. Qxf5 {[%clk 0:01:32.5]} 20... Nb6 {[%clk
0:01:52.1]} 21. Bg5 {[%clk 0:01:24.6]} 21... h6 {[%clk 0:01:47.4]} 22. Bf4
{[%clk 0:01:14.8]} 22... Nc4 {[%clk 0:01:30.8]} 23. h4 {[%clk 0:01:12.7]} 23...
Qc8 {[%clk 0:01:27.1]} 24. Qh5 {[%clk 0:01:09.2]} 24... Qe6 {[%clk 0:01:25]} 25.
Nh2 {[%clk 0:00:55.1]} 25... a5 {[%clk 0:01:22.3]} 26. bxa6 {[%clk 0:00:53.3]}
26... bxa6 {[%clk 0:01:22.3]} 27. Ng4 {[%clk 0:00:52.8]} 27... Qg6 {[%clk
0:00:56.4]} 28. Qxg6 {[%clk 0:00:50.7]} 28... fxg6 {[%clk 0:00:56.6]} 29. Rb7
{[%clk 0:00:49]} 29... Ba3 {[%clk 0:00:54.9]} 30. Rcb1 {[%clk 0:00:43.6]} 30...
Rf7 {[%clk 0:00:54.6]} 31. Ne3 {[%clk 0:00:31.4]} 31... Nxe3 {[%clk 0:00:47.2]}
32. fxe3 {[%clk 0:00:29]} 32... a5 {[%clk 0:00:44.1]} 33. e6 {[%clk 0:00:28.8]}
33... Re7 {[%clk 0:00:35]} 34. Be5 {[%clk 0:00:20.2]} 34... Bb4 {[%clk
0:00:24.5]} 35. e4 {[%clk 0:00:19.8]} 35... Rxb7 {[%clk 0:00:22.7]} 36. exd5
{[%clk 0:00:19]} 36... a4 {[%clk 0:00:22.7]} 37. d6 {[%clk 0:00:18.5]} 37... a3
{[%clk 0:00:22.2]} 38. d7 {[%clk 0:00:18.2]} 38... a2 {[%clk 0:00:22]} 39. Ra1
{[%clk 0:00:18.1]} 39... Be7 {[%clk 0:00:18.8]} 40. d5 {[%clk 0:00:18.5]} 40...
Kf8 {[%clk 0:00:14.4]} 41. d6 {[%clk 0:00:18.8]} 41... Rb1+ {[%clk 0:00:13.5]}
42. Kf2 {[%clk 0:00:17.9]} 42... Rxa1 {[%clk 0:00:13.5]} 43. dxe7+ {[%clk
0:00:17.2]} 43... Kxe7 {[%clk 0:00:13.7]} 44. Bxa1 {[%clk 0:00:18.1]} 44... Kxe6
{[%clk 0:00:13.9]} 45. Bxg7 {[%clk 0:00:17.5]} 45... Kxd7 {[%clk 0:00:12.8]} 46.
Ba1 {[%clk 0:00:17]} 46... Rb8 {[%clk 0:00:11.4]} 47. Ke3 {[%clk 0:00:15.7]}
47... Rb1 {[%clk 0:00:11]} 48. Bg7 {[%clk 0:00:16.4]} 48... a1=Q {[%clk
0:00:10.4]} 49. Bxa1 {[%clk 0:00:17.3]} 49... Rxa1 {[%clk 0:00:10.5]} 50. h5
{[%clk 0:00:17.7]} 50... gxh5 {[%clk 0:00:10.5]} 51. Kf4 {[%clk 0:00:18.3]}
51... Ra5 {[%clk 0:00:09.8]} 0-1

[Event "*** Titled Tuesday Blitz"]
[Site "Chess.com"]
[Date "2021.02.16"]
[Round "4"]
[White "vovachesss"]
[Black "CroissantNeuf"]
[Result "1-0"]
[WhiteElo "2662"]
[BlackElo "2469"]
[TimeControl "180+1"]
[EndTime "10:42:33 PST"]
[Termination "vovachesss won on time"]

1. Nf3 {[%clk 0:03:00.9]} 1... Nf6 {[%clk 0:02:59.5]} 2. g3 {[%clk 0:02:59.7]}
2... g6 {[%clk 0:03:00]} 3. Bg2 {[%clk 0:03:00.3]} 3... Bg7 {[%clk 0:03:00.6]}
4. b3 {[%clk 0:03:01]} 4... O-O {[%clk 0:02:51.6]} 5. Bb2 {[%clk 0:03:01.3]}
5... a5 {[%clk 0:02:52.1]} 6. O-O {[%clk 0:03:00]} 6... a4 {[%clk 0:02:51.4]} 7.
bxa4 {[%clk 0:03:00.9]} 7... Rxa4 {[%clk 0:02:48.9]} 8. d3 {[%clk 0:02:54.8]}
8... b6 {[%clk 0:02:36.5]} 9. c4 {[%clk 0:02:55]} 9... Ra7 {[%clk 0:02:35]} 10.
Nc3 {[%clk 0:02:50.9]} 10... Bb7 {[%clk 0:02:32.4]} 11. e4 {[%clk 0:02:46.1]}
11... d6 {[%clk 0:02:20.8]} 12. Re1 {[%clk 0:02:44.9]} 12... e5 {[%clk
0:02:16.3]} 13. a4 {[%clk 0:02:37]} 13... Nc6 {[%clk 0:02:15.2]} 14. Nd5 {[%clk
0:02:35.6]} 14... Nd7 {[%clk 0:02:08.5]} 15. d4 {[%clk 0:02:24]} 15... exd4
{[%clk 0:02:07.3]} 16. Nxd4 {[%clk 0:02:24.9]} 16... Nxd4 {[%clk 0:02:02.4]} 17.
Bxd4 {[%clk 0:02:25.8]} 17... Bxd5 {[%clk 0:01:50.8]} 18. cxd5 {[%clk
0:01:43.4]} 18... Bxd4 {[%clk 0:01:48.6]} 19. Qxd4 {[%clk 0:01:44.3]} 19... Qf6
{[%clk 0:01:37.6]} 20. Qxf6 {[%clk 0:01:31.1]} 20... Nxf6 {[%clk 0:01:37.1]} 21.
e5 {[%clk 0:01:32]} 21... dxe5 {[%clk 0:01:32.7]} 22. Rxe5 {[%clk 0:01:32.9]}
22... Re8 {[%clk 0:01:24.6]} 23. Rxe8+ {[%clk 0:01:22.3]} 23... Nxe8 {[%clk
0:01:24.7]} 24. Bf1 {[%clk 0:01:17.3]} 24... Nd6 {[%clk 0:01:22.1]} 25. Rc1
{[%clk 0:01:15]} 25... Kf8 {[%clk 0:01:17.7]} 26. Bb5 {[%clk 0:01:13.2]} 26...
Ke7 {[%clk 0:01:15.7]} 27. Re1+ {[%clk 0:01:06.8]} 27... Kf6 {[%clk 0:01:14.6]}
28. Bc6 {[%clk 0:01:03.1]} 28... Ra5 {[%clk 0:01:08.5]} 29. Rc1 {[%clk
0:01:02.5]} 29... Ne4 {[%clk 0:01:01]} 30. Bb5 {[%clk 0:00:55.2]} 30... Nc5
{[%clk 0:00:58.3]} 31. Re1 {[%clk 0:00:51.3]} 31... Nxa4 {[%clk 0:00:51.5]} 32.
Bxa4 {[%clk 0:00:41.9]} 32... Rxa4 {[%clk 0:00:51.6]} 33. Rc1 {[%clk 0:00:42.8]}
33... Ra7 {[%clk 0:00:48.6]} 34. f4 {[%clk 0:00:39.7]} 34... Ke7 {[%clk
0:00:47.5]} 35. Rc6 {[%clk 0:00:38.6]} 35... Kd7 {[%clk 0:00:46.9]} 36. Rf6
{[%clk 0:00:38.9]} 36... Ke7 {[%clk 0:00:46.8]} 37. Rc6 {[%clk 0:00:39.4]} 37...
h5 {[%clk 0:00:33.1]} 38. Kf2 {[%clk 0:00:38.2]} 38... b5 {[%clk 0:00:31.1]} 39.
Ke3 {[%clk 0:00:37.9]} 39... b4 {[%clk 0:00:28.3]} 40. Kd3 {[%clk 0:00:37.6]}
40... Rb7 {[%clk 0:00:17.6]} 41. Kc2 {[%clk 0:00:32]} 41... Kd7 {[%clk
0:00:14.3]} 42. Rf6 {[%clk 0:00:26.4]} 42... Ke7 {[%clk 0:00:13.4]} 43. Rc6
{[%clk 0:00:27]} 43... Kd7 {[%clk 0:00:05.5]} 44. f5 {[%clk 0:00:16]} 44... gxf5
{[%clk 0:00:03.6]} 45. Rf6 {[%clk 0:00:16.6]} 45... Ke7 {[%clk 0:00:03.5]} 46.
Rxf5 {[%clk 0:00:15.1]} 46... h4 {[%clk 0:00:02.8]} 47. g4 {[%clk 0:00:10.5]}
47... Kd6 {[%clk 0:00:02.3]} 48. Kb3 {[%clk 0:00:10.6]} 1-0